fUST/lending_fUST_20250206
["ID","MTS","AMOUNT","RATE_DAILY","PERIOD"]
[351916882,1738841450189,-950.18,0.00014246,2]
[351916883,1738841450201,-6367.58,0.00014246,2]
[351916884,1738841450211,-500.0,0.00014246,2]
[351916885,1738841450221,-500.0,0.00014246,2]
[351916886,1738841450231,-1279.6,0.00014246,2]
[351916887,1738841450242,-1551.92,0.00014246,2]
[351916888,1738841450257,-1383.45,0.00014246,2]
[351916889,1738841450267,-500.0,0.00014246,2]
[351916890,1738841450276,-2423.02,0.00014246,2]
[351916891,1738841450286,-45086.6,0.00014246,2]
[351916892,1738841450295,-2110.1,0.00014246,2]
[351916893,1738841450305,-500.0,0.00014246,2]
[351916894,1738841450314,-473.11195959,0.00014246,2]
[351916895,1738841450324,-2428.01,0.00014246,2]
[351916896,1738841450333,-500.0,0.00014246,2]
[351916897,1738841450343,-798.79,0.00014246,2]
[351916898,1738841450353,-500.0,0.00014246,2]
[351916899,1738841450362,-18452.3,0.00014246,2]
[351916900,1738841450371,-1688.03,0.00014246,2]
[351916901,1738841450381,-1479.2,0.00014246,2]
[351916902,1738841450390,-805.95,0.00014246,2]
[351916903,1738841450399,-650.14,0.00014246,2]
[351916904,1738841450409,-151.0,0.00014246,2]
[351916905,1738841450418,-1447.64,0.00014246,2]
[351916906,1738841450427,-500.0,0.00014246,2]
[351916907,1738841450437,-2324.37,0.00014246,2]
[351916908,1738841450446,-500.0,0.00014246,2]
[351916909,1738841450456,-500.0,0.00014246,2]
[351916910,1738841450465,-1520.8,0.00014246,2]
[351916911,1738841450474,-271.1493409,0.00014246,2]
[351916912,1738841450483,-1442.92,0.00014246,2]
[351916913,1738841450493,-696.94,0.00014246,2]
[351916914,1738841450506,-500.0,0.00014246,2]
[351916915,1738841450515,-500.0,0.00014246,2]
[351916916,1738841450524,-1709.30902525,0.00014246,2]
[351916917,1738841450742,-1760.44650309,0.00014246,2]
[351916918,1738841450944,-331.40099454,0.00013972,2]
[351916919,1738841450965,-447.24535755,0.00013972,2]
[351916920,1738841451241,-344.46489065,0.00013972,2]
[351916921,1738841451343,-500.0,0.00013698,2]
[351916922,1738841451354,-83.69875726,0.00013972,2]
[351916923,1738841451364,-1206.81,0.00014109,2]
[351916924,1738841451374,-354.6875562,0.00014137,2]
[351916925,1738841451383,-199.22447166,0.00014246,2]
[351916926,1738841451394,-500.0,0.00014246,2]
[351916927,1738841451404,-151.0,0.00014246,2]
[351916928,1738841451414,-839.18,0.00014246,2]
[351916929,1738841451424,-151.0,0.00014246,2]
[351916930,1738841451433,-3419.9,0.00014246,2]
[351916931,1738841451443,-861.16,0.00014246,2]
[351916932,1738841451452,-500.0,0.00014246,2]
[351916933,1738841451461,-500.0,0.00014246,2]
[351916934,1738841451470,-7084.11824541,0.00014246,2]
[351916942,1738842331109,-250.0,0.00012337,2]
[351916943,1738842331129,-303.58750485,0.00012531,2]
[351916944,1738842352126,-966.68658,0.00012531,2]
[351916945,1738842437139,-560.00795882,0.00010959,2]
[351916946,1738842448101,-193.66204118,0.00010959,2]
[351916947,1738842448125,-2640.69442113,0.00012406,2]
[351916948,1738842546146,-900.0,0.00012054,2]
[351916949,1738842546168,-255.4592,0.00012117,2]
[351916950,1738842547100,-75.9417946,0.00012117,2]
[351916951,1738842547122,-236.34884994,0.00012406,2]
[351916952,1738842547143,-976.85903324,0.00012531,2]
[351916953,1738842547165,-219.37619585,0.00012531,2]
[351916954,1738842547186,-300.0,0.00012631,2]
[351916955,1738842547208,-1081.96645929,0.00012632,2]
[351916956,1738842547229,-24341.50266708,0.00012632,2]
[351916957,1738842569066,957.1157595,0.000125,2]
[351916958,1738842631067,160.0,0.00017319,120]
[351916967,1738842632774,-1599.25036229,0.000125,2]
[351916968,1738842632783,-424.2582052,0.00012611,2]
[351916969,1738842632793,-558.49733292,0.00012632,2]
[351916970,1738842632802,-900.0,0.00013424,2]
[351916971,1738842632811,-84.38189959,0.00013499,2]
[351916972,1738842632826,-354.1838761,0.00013499,2]
[351916973,1738842632835,-153.0,0.000135,2]
[351916974,1738842632844,-300.0,0.00013577,2]
[351916975,1738842632854,-819.60257069,0.00013577,2]
[351916989,1738842639825,-1333.99999851,0.00013577,2]
[351916990,1738842639838,-894.16914723,0.00013577,2]
[351916991,1738842639850,-4390.92581635,0.00013577,2]
[351916992,1738842639859,-159.044,0.0001358,2]
[351916993,1738842639870,-2328.48994508,0.00013599,2]
[351916994,1738842639880,-215.7177124,0.000136,2]
[351916995,1738842639890,-460.9549837,0.000136,2]
[351916996,1738842639900,-500.0,0.00013673,2]
[351916997,1738842639910,-500.0,0.00013673,2]
[351916998,1738842639921,-501.09183101,0.00013673,2]
[351916999,1738842639932,-516.52574689,0.00013673,2]
[351917000,1738842639941,-272.52131296,0.0001369,2]
[351917001,1738842639954,-500.0,0.00013697,2]
[351917002,1738842639963,-500.0,0.00013697,2]
[351917003,1738842639973,-500.0,0.00013697,2]
[351917004,1738842639982,-392.28135364,0.00013697,2]
[351917005,1738842639992,-500.0,0.00013698,2]
[351917006,1738842640002,-517.43093041,0.00013698,2]
[351917007,1738842640012,-500.0,0.00013698,2]
[351917008,1738842640022,-500.0,0.00013698,2]
[351917009,1738842640032,-500.0,0.00013698,2]
[351917010,1738842640041,-500.0,0.00013698,2]
[351917011,1738842640051,-172.24545994,0.00013698,2]
[351917012,1738842640060,-500.0,0.00013698,2]
[351917013,1738842640070,-547.62,0.00013698,2]
[351917014,1738842640080,-500.0,0.00013698,2]
[351917015,1738842640090,-500.0,0.00013698,2]
[351917016,1738842640099,-500.0,0.00013698,2]
[351917017,1738842640108,-500.0,0.00013698,2]
[351917018,1738842640118,-500.0,0.00013698,2]
[351917019,1738842640127,-500.0,0.00013698,2]
[351917021,1738842640136,-500.0,0.00013698,2]
[351917023,1738842640145,-500.0,0.00013698,2]
[351917024,1738842640156,-500.0,0.00013698,2]
[351917025,1738842640165,-626.95,0.00013698,2]
[351917026,1738842640174,-511.92,0.00013698,2]
[351917027,1738842640183,-501.59986121,0.00013698,2]
[351917028,1738842640193,-500.0,0.00013698,2]
[351917029,1738842640204,-500.0,0.00013698,2]
[351917030,1738842640213,-500.0,0.00013698,2]
[351917031,1738842640222,-500.0,0.00013698,2]
[351917032,1738842640231,-500.0,0.00013698,2]
[351917033,1738842640240,-500.0,0.00013698,2]
[351917034,1738842640249,-561.63,0.00013698,2]
[351917035,1738842640260,-500.0,0.00013698,2]
[351917036,1738842640271,-500.0,0.00013698,2]
[351917037,1738842640280,-466.12527178,0.00013698,2]
[351917038,1738842640290,-500.0,0.00013698,2]
[351917039,1738842640300,-500.0,0.00013698,2]
[351917040,1738842640309,-500.0,0.00013698,2]
[351917042,1738842640319,-162.77288074,0.00013698,2]
[351917043,1738842640328,-500.0,0.00013698,2]
[351917044,1738842640337,-500.0,0.00013698,2]
[351917045,1738842640347,-500.0,0.00013698,2]
[351917046,1738842640356,-500.0,0.00013698,2]
[351917047,1738842640365,-500.0,0.00013698,2]
[351917048,1738842640374,-500.0,0.00013698,2]
[351917049,1738842640384,-500.0,0.00013698,2]
[351917050,1738842640394,-501.15220094,0.00013698,2]
[351917051,1738842640404,-500.0,0.00013698,2]
[351917053,1738842640413,-246.24229999,0.00013698,2]
[351917054,1738842640422,-500.0,0.00013698,2]
[351917056,1738842640432,-500.0,0.00013698,2]
[351917057,1738842640441,-500.0,0.00013698,2]
[351917059,1738842640453,-500.0,0.00013698,2]
[351917061,1738842640462,-500.0,0.00013698,2]
[351917062,1738842640472,-500.0,0.00013698,2]
[351917064,1738842640481,-500.0,0.00013698,2]
[351917066,1738842640493,-500.0,0.00013698,2]
[351917067,1738842640502,-500.0,0.00013698,2]
[351917069,1738842640512,-500.0,0.00013698,2]
[351917071,1738842640521,-500.80239085,0.00013698,2]
[351917072,1738842640531,-500.0,0.00013698,2]
[351917074,1738842640540,-500.0,0.00013698,2]
[351917076,1738842640549,-500.0,0.00013698,2]
[351917078,1738842640561,-500.0,0.00013698,2]
[351917080,1738842640571,-500.0,0.00013698,2]
[351917082,1738842640580,-500.0,0.00013698,2]
[351917084,1738842640590,-500.0,0.00013698,2]
[351917085,1738842640599,-500.0,0.00013698,2]
[351917086,1738842640609,-500.0,0.00013698,2]
[351917087,1738842640617,-500.0,0.00013698,2]
[351917088,1738842640626,-500.0,0.00013698,2]
[351917089,1738842640635,-500.0,0.00013698,2]
[351917090,1738842640644,-500.0,0.00013698,2]
[351917091,1738842640653,-500.0,0.00013698,2]
[351917092,1738842640662,-109.89222471,0.00013698,2]
[351917093,1738842640677,-390.10777529,0.00013698,2]
[351917094,1738842640686,-500.0,0.00013698,2]
[351917095,1738842640697,-500.0,0.00013698,2]
[351917096,1738842640707,-1027.19,0.00013698,2]
[351917097,1738842640716,-500.0,0.00013698,2]
[351917098,1738842640726,-500.0,0.00013698,2]
[351917099,1738842640735,-500.0,0.00013698,2]
[351917100,1738842640744,-500.0,0.00013698,2]
[351917101,1738842640754,-500.0,0.00013698,2]
[351917102,1738842640764,-500.0,0.00013698,2]
[351917103,1738842640773,-500.0,0.00013698,2]
[351917104,1738842640782,-500.0,0.00013698,2]
[351917105,1738842640792,-540.0,0.00013698,2]
[351917106,1738842640800,-500.0,0.00013698,2]
[351917107,1738842640810,-500.0,0.00013698,2]
[351917109,1738842640819,-500.0,0.00013698,2]
[351917110,1738842640828,-500.0,0.00013698,2]
[351917111,1738842640838,-500.0,0.00013698,2]
[351917113,1738842640847,-500.0,0.00013698,2]
[351917115,1738842640857,-500.0,0.00013698,2]
[351917117,1738842640866,-500.0,0.00013698,2]
[351917119,1738842640875,-500.29144547,0.00013698,2]
[351917121,1738842640884,-721.26,0.00013698,2]
[351917123,1738842640894,-500.0,0.00013698,2]
[351917125,1738842640903,-500.0,0.00013698,2]
[351917127,1738842640913,-500.0,0.00013698,2]
[351917129,1738842640922,-868.38,0.00013698,2]
[351917131,1738842640932,-500.0,0.00013698,2]
[351917133,1738842640941,-500.0,0.00013698,2]
[351917135,1738842640951,-624.99243347,0.00013698,2]
[351917137,1738842640960,-500.0,0.00013698,2]
[351917139,1738842640970,-500.0,0.00013698,2]
[351917141,1738842640979,-500.0,0.00013698,2]
[351917143,1738842640989,-500.0,0.00013698,2]
[351917145,1738842640998,-564.34,0.00013698,2]
[351917147,1738842641008,-425.68978046,0.00013698,2]
[351917149,1738842641021,-80.5050897,0.00013698,2]
[351917151,1738842641031,-500.0,0.00013698,2]
[351917153,1738842641040,-432.0949103,0.00013698,2]
[351917156,1738842641064,-67.9050897,0.00013698,2]
[351917158,1738842641074,-500.0,0.00013698,2]
[351917160,1738842641084,-500.0,0.00013698,2]
[351917162,1738842641094,-500.0,0.00013698,2]
[351917164,1738842641103,-500.0,0.00013698,2]
[351917166,1738842641112,-500.0,0.00013698,2]
[351917168,1738842641122,-500.0,0.00013698,2]
[351917170,1738842641131,-501.76279991,0.00013698,2]
[351917172,1738842641141,-500.0,0.00013698,2]
[351917174,1738842641150,-500.0,0.00013698,2]
[351917176,1738842641160,-500.0,0.00013698,2]
[351917178,1738842641169,-500.0,0.00013698,2]
[351917180,1738842641178,-500.0,0.00013698,2]
[351917182,1738842641187,-389.98335779,0.00013698,2]
[351917184,1738842641197,-500.0,0.00013698,2]
[351917186,1738842641208,-500.0,0.00013698,2]
[351917188,1738842641217,-696.13,0.00013698,2]
[351917189,1738842641226,-500.0,0.00013698,2]
[351917191,1738842641235,-500.0,0.00013698,2]
[351917193,1738842641244,-795.46,0.00013698,2]
[351917195,1738842641254,-500.0,0.00013698,2]
[351917197,1738842641263,-500.0,0.00013698,2]
[351917199,1738842641273,-500.0,0.00013698,2]
[351917201,1738842641282,-508.1595289,0.00013698,2]
[351917203,1738842641291,-500.0,0.00013698,2]
[351917206,1738842641301,-500.0,0.00013698,2]
[351917208,1738842641311,-500.0,0.00013698,2]
[351917210,1738842641320,-500.0,0.00013698,2]
[351917212,1738842641330,-500.0,0.00013698,2]
[351917214,1738842641340,-500.0,0.00013698,2]
[351917216,1738842641349,-500.0,0.00013698,2]
[351917218,1738842641359,-500.0,0.00013698,2]
[351917220,1738842641369,-500.0,0.00013698,2]
[351917222,1738842641378,-500.0,0.00013698,2]
[351917224,1738842641387,-500.0,0.00013698,2]
[351917226,1738842641396,-588.89,0.00013698,2]
[351917228,1738842641405,-500.0,0.00013698,2]
[351917230,1738842641415,-500.0,0.00013698,2]
[351917232,1738842641423,-500.0,0.00013698,2]
[351917234,1738842641433,-500.0,0.00013698,2]
[351917236,1738842641441,-500.0,0.00013698,2]
[351917238,1738842641452,-500.0,0.00013698,2]
[351917240,1738842641461,-500.0,0.00013698,2]
[351917242,1738842641471,-500.0,0.00013698,2]
[351917244,1738842641484,-500.0,0.00013698,2]
[351917246,1738842641494,-500.0,0.00013698,2]
[351917248,1738842641504,-500.0,0.00013698,2]
[351917250,1738842641513,-1680.71,0.00013698,2]
[351917252,1738842641524,-500.0,0.00013698,2]
[351917254,1738842641533,-500.0,0.00013698,2]
[351917256,1738842641542,-500.0,0.00013698,2]
[351917258,1738842641553,-500.0,0.00013698,2]
[351917260,1738842641563,-500.0,0.00013698,2]
[351917262,1738842641572,-500.0,0.00013698,2]
[351917264,1738842641581,-500.0,0.00013698,2]
[351917266,1738842641591,-500.0,0.00013698,2]
[351917268,1738842641600,-500.0,0.00013698,2]
[351917269,1738842641618,-500.0,0.00013698,2]
[351917271,1738842641628,-500.0,0.00013698,2]
[351917273,1738842641638,-989.61,0.00013698,2]
[351917275,1738842641648,-500.0,0.00013698,2]
[351917277,1738842641658,-502.58504685,0.00013698,2]
[351917279,1738842641668,-500.0,0.00013698,2]
[351917281,1738842641677,-1856.51,0.00013698,2]
[351917283,1738842641686,-500.0,0.00013698,2]
[351917285,1738842641695,-500.0,0.00013698,2]
[351917287,1738842641706,-500.0,0.00013698,2]
[351917289,1738842641716,-500.0,0.00013698,2]
[351917291,1738842641726,-500.0,0.00013698,2]
[351917293,1738842641735,-500.0,0.00013698,2]
[351917295,1738842641745,-500.0,0.00013698,2]
[351917296,1738842641754,-500.0,0.00013698,2]
[351917298,1738842641764,-500.0,0.00013698,2]
[351917300,1738842641774,-500.0,0.00013698,2]
[351917301,1738842641783,-500.0,0.00013698,2]
[351917302,1738842641793,-500.0,0.00013698,2]
[351917304,1738842641803,-500.0,0.00013698,2]
[351917307,1738842641813,-500.0,0.00013698,2]
[351917309,1738842641822,-500.0,0.00013698,2]
[351917310,1738842641831,-500.0,0.00013698,2]
[351917312,1738842641841,-500.0,0.00013698,2]
[351917315,1738842641851,-500.0,0.00013698,2]
[351917317,1738842641860,-500.0,0.00013698,2]
[351917319,1738842641869,-500.0,0.00013698,2]
[351917321,1738842641878,-500.0,0.00013698,2]
[351917322,1738842641888,-519.94,0.00013698,2]
[351917324,1738842641897,-209.709451,0.00013698,2]
[351917326,1738842641906,-500.0,0.00013698,2]
[351917328,1738842641915,-500.0,0.00013698,2]
[351917330,1738842641925,-541.53868586,0.00013698,2]
[351917332,1738842641934,-500.0,0.00013698,2]
[351917334,1738842641943,-695.02,0.00013698,2]
[351917336,1738842641953,-850.88,0.00013698,2]
[351917338,1738842641962,-500.0,0.00013698,2]
[351917340,1738842641971,-500.0,0.00013698,2]
[351917342,1738842641981,-382.041907,0.00013698,2]
[351917344,1738842641991,-500.0,0.00013698,2]
[351917345,1738842642001,-500.0,0.00013698,2]
[351917347,1738842642009,-500.0,0.00013698,2]
[351917349,1738842642019,-1000.0,0.00013698,2]
[351917350,1738842642028,-500.0,0.00013698,2]
[351917351,1738842642037,-500.0,0.00013698,2]
[351917352,1738842642047,-500.0,0.00013698,2]
[351917353,1738842642057,-500.0,0.00013698,2]
[351917354,1738842642066,-500.0,0.00013698,2]
[351917355,1738842642076,-746.67,0.00013698,2]
[351917356,1738842642086,-1395.88,0.00013698,2]
[351917357,1738842642095,-500.0,0.00013698,2]
[351917358,1738842642105,-500.0,0.00013698,2]
[351917359,1738842642115,-500.0,0.00013698,2]
[351917360,1738842642124,-500.0,0.00013698,2]
[351917361,1738842642133,-188.0,0.00013698,2]
[351917362,1738842642143,-500.0,0.00013698,2]
[351917363,1738842642153,-500.0,0.00013698,2]
[351917364,1738842642162,-460.53401954,0.00013698,2]
[351917365,1738842642172,-500.0,0.00013698,2]
[351917366,1738842642181,-500.0,0.00013698,2]
[351917367,1738842642190,-500.0,0.00013698,2]
[351917368,1738842642200,-500.0,0.00013698,2]
[351917369,1738842642210,-1348.69,0.00013698,2]
[351917370,1738842642219,-500.0,0.00013698,2]
[351917371,1738842642228,-503.49486909,0.00013698,2]
[351917372,1738842642237,-500.0,0.00013698,2]
[351917373,1738842642246,-500.0,0.00013698,2]
[351917374,1738842642256,-500.0,0.00013698,2]
[351917375,1738842642266,-500.0,0.00013698,2]
[351917376,1738842642275,-500.0,0.00013698,2]
[351917377,1738842642285,-500.0,0.00013698,2]
[351917378,1738842642295,-1504.43,0.00013698,2]
[351917379,1738842642304,-500.0,0.00013698,2]
[351917380,1738842642314,-222.47802965,0.00013698,2]
[351917381,1738842642323,-500.0,0.00013698,2]
[351917382,1738842642333,-500.0,0.00013698,2]
[351917383,1738842642343,-500.0,0.00013698,2]
[351917384,1738842642352,-392.76298702,0.00013698,2]
[351917385,1738842642362,-500.0,0.00013698,2]
[351917386,1738842642371,-500.0,0.00013698,2]
[351917387,1738842642380,-500.0,0.00013698,2]
[351917388,1738842642390,-500.0,0.00013698,2]
[351917389,1738842642568,-500.0,0.00013698,2]
[351917390,1738842642578,-503.37826417,0.00013698,2]
[351917391,1738842642588,-500.0,0.00013698,2]
[351917392,1738842642598,-500.0,0.00013698,2]
[351917393,1738842642607,-500.0,0.00013698,2]
[351917394,1738842642617,-500.0,0.00013698,2]
[351917395,1738842642627,-500.0,0.00013698,2]
[351917396,1738842642637,-721.25,0.00013698,2]
[351917397,1738842642647,-500.0,0.00013698,2]
[351917398,1738842642657,-424.86869562,0.00013698,2]
[351917399,1738842642667,-500.0,0.00013698,2]
[351917400,1738842642676,-296.33550128,0.00013698,2]
[351917401,1738842642685,-500.0,0.00013698,2]
[351917402,1738842642694,-500.0,0.00013698,2]
[351917403,1738842642704,-500.0,0.00013698,2]
[351917404,1738842642714,-1135.09,0.00013698,2]
[351917405,1738842642723,-500.0,0.00013698,2]
[351917406,1738842642732,-500.0,0.00013698,2]
[351917407,1738842642742,-500.0,0.00013698,2]
[351917408,1738842642752,-439.00348576,0.00013698,2]
[351917409,1738842642761,-500.0,0.00013698,2]
[351917410,1738842642771,-500.0,0.00013698,2]
[351917411,1738842642780,-729.36,0.00013698,2]
[351917412,1738842642790,-852.41,0.00013698,2]
[351917413,1738842642800,-500.0,0.00013698,2]
[351917414,1738842642810,-500.0,0.00013698,2]
[351917415,1738842642820,-500.0,0.00013698,2]
[351917416,1738842642830,-3451.32,0.00013698,2]
[351917417,1738842642839,-500.0,0.00013698,2]
[351917418,1738842642848,-512.00962202,0.00013698,2]
[351917419,1738842642857,-505.14936998,0.00013698,2]
[351917420,1738842642867,-14115.56,0.00013698,2]
[351917421,1738842642877,-500.0,0.00013698,2]
[351917422,1738842642886,-500.0,0.00013698,2]
[351917423,1738842642896,-289.81833978,0.00013698,2]
[351917424,1738842642906,-500.0,0.00013698,2]
[351917425,1738842642915,-500.0,0.00013698,2]
[351917426,1738842642925,-727.02,0.00013698,2]
[351917427,1738842642935,-500.0,0.00013698,2]
[351917428,1738842642944,-500.0,0.00013698,2]
[351917429,1738842642955,-500.0,0.00013698,2]
[351917430,1738842642965,-500.0,0.00013698,2]
[351917431,1738842642975,-500.0,0.00013698,2]
[351917432,1738842642984,-500.0,0.00013698,2]
[351917433,1738842642994,-500.0,0.00013698,2]
[351917434,1738842643003,-518.63325424,0.00013698,2]
[351917435,1738842643013,-1074.43,0.00013698,2]
[351917436,1738842643022,-500.0,0.00013698,2]
[351917437,1738842643032,-500.0,0.00013698,2]
[351917438,1738842643041,-321.88725021,0.00013698,2]
[351917439,1738842643051,-500.0,0.00013698,2]
[351917440,1738842643061,-500.0,0.00013698,2]
[351917441,1738842643070,-500.0,0.00013698,2]
[351917442,1738842643079,-500.0,0.00013698,2]
[351917443,1738842643089,-500.0,0.00013698,2]
[351917444,1738842643099,-500.0,0.00013698,2]
[351917445,1738842643108,-500.0,0.00013698,2]
[351917446,1738842643118,-500.0,0.00013698,2]
[351917447,1738842643128,-500.0,0.00013698,2]
[351917448,1738842643137,-500.0,0.00013698,2]
[351917449,1738842643147,-500.0,0.00013698,2]
[351917450,1738842643157,-500.0,0.00013698,2]
[351917451,1738842643166,-500.0,0.00013698,2]
[351917452,1738842643175,-500.0,0.00013698,2]
[351917453,1738842643185,-500.0,0.00013698,2]
[351917454,1738842643194,-500.0,0.00013698,2]
[351917455,1738842643206,-500.0,0.00013698,2]
[351917456,1738842643215,-500.0,0.00013698,2]
[351917457,1738842643226,-500.0,0.00013698,2]
[351917458,1738842643235,-500.0,0.00013698,2]
[351917459,1738842643244,-500.0,0.00013698,2]
[351917460,1738842643254,-1406.19,0.00013698,2]
[351917461,1738842643263,-500.0,0.00013698,2]
[351917462,1738842643273,-1383.45,0.00013698,2]
[351917464,1738842643282,-500.0,0.00013698,2]
[351917466,1738842643292,-500.0,0.00013698,2]
[351917468,1738842643302,-500.0,0.00013698,2]
[351917470,1738842643312,-500.0,0.00013698,2]
[351917472,1738842643321,-500.0,0.00013698,2]
[351917473,1738842643331,-500.0,0.00013698,2]
[351917474,1738842643340,-500.0,0.00013698,2]
[351917475,1738842643350,-500.0,0.00013698,2]
[351917477,1738842643359,-500.0,0.00013698,2]
[351917480,1738842643369,-500.0,0.00013698,2]
[351917482,1738842643379,-500.0,0.00013698,2]
[351917484,1738842643389,-500.0,0.00013698,2]
[351917486,1738842643399,-500.0,0.00013698,2]
[351917488,1738842643408,-6508.2,0.00013698,2]
[351917490,1738842643417,-539.1048513,0.00013698,2]
[351917492,1738842643427,-500.0,0.00013698,2]
[351917495,1738842643437,-500.0,0.00013698,2]
[351917498,1738842643446,-500.0,0.00013698,2]
[351917501,1738842643458,-500.0,0.00013698,2]
[351917504,1738842643468,-238.68634286,0.00013698,2]
[351917506,1738842643478,-500.0,0.00013698,2]
[351917509,1738842643493,-500.0,0.00013698,2]
[351917512,1738842643502,-500.0,0.00013698,2]
[351917514,1738842643512,-654.75,0.00013698,2]
[351917517,1738842643523,-541.13220611,0.00013698,2]
[351917520,1738842643533,-500.0,0.00013698,2]
[351917524,1738842643543,-500.0,0.00013698,2]
[351917527,1738842643552,-1195.52,0.00013698,2]
[351917529,1738842643563,-500.0,0.00013698,2]
[351917532,1738842643573,-1595.17,0.00013698,2]
[351917535,1738842643583,-500.0,0.00013698,2]
[351917537,1738842643592,-500.0,0.00013698,2]
[351917539,1738842643602,-500.0,0.00013698,2]
[351917541,1738842643611,-500.0,0.00013698,2]
[351917543,1738842643621,-497.46872135,0.00013698,2]
[351917545,1738842643631,-513.61,0.00013698,2]
[351917547,1738842643641,-500.0,0.00013698,2]
[351917549,1738842643650,-506.03758764,0.00013698,2]
[351917551,1738842643660,-500.0,0.00013698,2]
[351917553,1738842643670,-500.0,0.00013698,2]
[351917555,1738842643680,-50073.77,0.00013698,2]
[351917557,1738842643690,-500.89349764,0.00013698,2]
[351917559,1738842643700,-5130.2,0.00013698,2]
[351917561,1738842643713,-500.0,0.00013698,2]
[351917564,1738842643723,-500.0,0.00013698,2]
[351917567,1738842643733,-501.31913381,0.00013698,2]
[351917569,1738842643742,-500.0,0.00013698,2]
[351917571,1738842643752,-500.0,0.00013698,2]
[351917573,1738842643762,-500.0,0.00013698,2]
[351917576,1738842643772,-500.81490185,0.00013698,2]
[351917579,1738842643781,-500.0,0.00013698,2]
[351917581,1738842643790,-500.0,0.00013698,2]
[351917584,1738842643799,-500.0,0.00013698,2]
[351917586,1738842643809,-500.0,0.00013698,2]
[351917587,1738842643819,-500.0,0.00013698,2]
[351917588,1738842643828,-2577.92,0.00013698,2]
[351917589,1738842643838,-500.0,0.00013698,2]
[351917590,1738842643847,-500.0,0.00013698,2]
[351917591,1738842643857,-500.0,0.00013698,2]
[351917592,1738842643867,-500.0,0.00013698,2]
[351917593,1738842643877,-2626.19,0.00013698,2]
[351917594,1738842643889,-500.0,0.00013698,2]
[351917595,1738842643899,-798.79,0.00013698,2]
[351917596,1738842643909,-500.0,0.00013698,2]
[351917597,1738842643919,-500.0,0.00013698,2]
[351917598,1738842643929,-2224.11,0.00013698,2]
[351917599,1738842643938,-500.0,0.00013698,2]
[351917600,1738842643949,-500.0,0.00013698,2]
[351917601,1738842643961,-500.0,0.00013698,2]
[351917602,1738842643970,-360.59082124,0.00013698,2]
[351917603,1738842643980,-500.0,0.00013698,2]
[351917604,1738842643990,-500.0,0.00013698,2]
[351917605,1738842644000,-1545.94,0.00013698,2]
[351917606,1738842644009,-500.0,0.00013698,2]
[351917607,1738842644018,-500.0,0.00013698,2]
[351917608,1738842644027,-500.0,0.00013698,2]
[351917609,1738842644037,-500.0,0.00013698,2]
[351917610,1738842644047,-500.57867955,0.00013698,2]
[351917611,1738842644057,-500.0,0.00013698,2]
[351917612,1738842644067,-993.22,0.00013698,2]
[351917613,1738842644076,-500.0,0.00013698,2]
[351917614,1738842644086,-500.0,0.00013698,2]